bitfinex/quotes_BTCUSD_20251124
["timestamp","ask_amount","ask_price","bid_price","bid_amount"]
[1763953846420,2.37493236,87461.0,87460.0,0.00051758]
[1763953846622,2.38931236,87461.0,87460.0,0.00051758]
[1763953846821,2.37797739,87461.0,87460.0,0.00051758]
[1763953848031,2.37897739,87461.0,87460.0,0.00051758]
[1763953848469,2.35790935,87461.0,87460.0,0.00051758]
[1763953848694,2.37897344,87461.0,87460.0,0.00051758]
[1763953849068,2.39030853,87461.0,87460.0,0.00051758]
[1763953849269,2.38930853,87461.0,87460.0,0.00051758]
[1763953850000,0.03544409,87461.0,87460.0,0.04730758]
[1763953850200,0.03544409,87461.0,87460.0,0.01993758]
[1763953850201,0.01438,87461.0,87460.0,0.01993758]
[1763953850521,0.01438,87461.0,87460.0,0.04730758]
[1763953851350,0.03547579,87461.0,87460.0,0.04730758]
[1763953851553,0.03547592,87461.0,87460.0,0.04755764]
[1763953851943,0.01438,87461.0,87460.0,0.04755764]
[1763953852345,0.323,87468.0,87460.0,0.04755764]
[1763953852549,0.0211019,87467.0,87461.0,0.01438]
[1763953852774,0.0211019,87466.0,87461.0,0.01438]
[1763953852976,0.0211019,87465.0,87461.0,0.01438]
[1763953853179,0.0211019,87464.0,87461.0,0.01438]
[1763953853424,0.03438393,87467.0,87461.0,0.01438]
[1763953853425,0.0211019,87463.0,87462.0,0.02737]
[1763953853630,0.323,87468.0,87466.0,0.01942]
[1763953853801,0.0287561,87471.0,87467.0,0.02571376]
[1763953854026,0.02111022,87470.0,87467.0,0.00629376]
[1763953854167,0.02111022,87469.0,87468.0,0.02737]
[1763953854359,0.02111022,87470.0,87468.0,0.04679]
[1763953854611,0.02111022,87469.0,87468.0,0.03431638]
[1763953854856,0.02111022,87470.0,87468.0,0.00694638]
[1763953855037,0.02111022,87469.0,87461.0,0.01738]
[1763953855334,0.0143761,87471.0,87470.0,0.01942]
[1763953855493,0.0143761,87471.0,87470.0,0.04679]
[1763953855708,0.323,87479.0,87470.0,0.04679]
[1763953856063,0.35037,87479.0,87478.0,0.0338]
[1763953856264,0.38526154,87479.0,87478.0,0.0338]
[1763953856786,0.06226154,87479.0,87472.0,0.01438]
[1763953857056,0.09122371,87477.0,87472.0,0.01438]
[1763953857251,0.53050859,87482.0,87472.0,0.01438]
[1763953857252,0.54644767,87482.0,87472.0,0.01438]
[1763953857422,0.01366654,87479.0,87476.0,0.01942]
[1763953857622,1.577561,87481.0,87477.0,0.006217]
[1763953858452,1.577561,87481.0,87478.0,0.001]
[1763953858655,1.5910115,87481.0,87478.0,0.001]
[1763953858855,0.323,87479.0,87478.0,0.001]
[1763953859070,0.323,87480.0,87472.0,0.04275]
[1763953859272,0.323,87480.0,87472.0,0.01438]
[1763953859655,0.323,87480.0,87478.0,0.001]
[1763953860022,0.33443118,87480.0,87472.0,0.01438]
[1763953860178,1.577561,87480.0,87472.0,0.01538]
[1763953860380,0.33660228,87481.0,87472.0,0.01538]
[1763953860564,0.323,87479.0,87472.0,0.01438]
[1763953860958,0.323,87479.0,87478.0,0.001]
[1763953861293,0.39357188,87479.0,87478.0,0.001]
[1763953861532,0.01143144,87478.0,87463.0,0.02737]
[1763953861662,0.09122371,87476.0,87471.0,0.01438]
[1763953861899,0.09122371,87476.0,87472.0,0.001]
[1763953862319,0.09122371,87476.0,87471.0,0.01438]
[1763953863050,0.09122371,87476.0,87472.0,0.001]
[1763953863256,0.41422371,87476.0,87471.0,0.01438]
[1763953863600,0.41422371,87476.0,87471.0,0.01538]
[1763953864379,0.32435,87472.0,87471.0,0.002]
[1763953864553,0.55299459,87472.0,87471.0,0.002]
[1763953864762,2.13055559,87472.0,87471.0,0.001]
[1763953864968,1.900561,87472.0,87471.0,0.001]
[1763953865284,0.323,87472.0,87471.0,0.064]
[1763953865513,0.323,87475.0,87471.0,0.0704]
[1763953865647,0.323,87473.0,87471.0,0.05191]
[1763953865855,0.323,87472.0,87471.0,0.02331]
[1763953866054,0.323,87472.0,87471.0,0.01591]
[1763953866252,0.01360228,87481.0,87471.0,0.0374]
[1763953866456,0.03438105,87479.0,87472.0,0.09122371]
[1763953866650,0.323,87489.0,87473.0,0.01367337]
[1763953866925,0.323,87489.0,87473.0,0.04227337]
[1763953867137,0.323,87489.0,87488.0,0.0354]
[1763953867767,0.01373445,87490.0,87480.0,0.0286]
[1763953867975,0.01373445,87490.0,87482.0,0.01491]
[1763953867976,0.09122371,87484.0,87482.0,0.01491]
[1763953868145,0.09122371,87484.0,87474.0,0.01491]
[1763953868365,0.09122371,87484.0,87475.0,0.005942]
[1763953868510,0.323,87483.0,87475.0,0.005942]
[1763953868910,0.323,87483.0,87474.0,0.01502758]
[1763953869213,0.323,87483.0,87482.0,0.001]
[1763953869699,0.323,87483.0,87480.0,0.001]
[1763953869700,0.323,87482.0,87480.0,0.001]
[1763953869876,2.13053207,87481.0,87480.0,0.001]
[1763953870078,2.1516291,87481.0,87480.0,0.001]
[1763953870684,0.323,87478.0,87474.0,0.00011758]
[1763953870944,0.22861845,87482.0,87474.0,0.00011758]
[1763953870945,1.900561,87475.0,87474.0,0.00011758]
[1763953871941,1.900561,87475.0,87474.0,0.00211758]
[1763953872086,1.900561,87475.0,87474.0,0.05120758]
[1763953872437,1.900561,87475.0,87474.0,0.02721934]
[1763953872746,1.900561,87475.0,87474.0,0.02921934]
[1763953873250,1.900561,87475.0,87474.0,0.02260758]
[1763953873429,1.900561,87475.0,87474.0,0.05120758]
[1763953873628,0.323,87475.0,87474.0,0.05120758]
[1763953875158,0.323,87475.0,87474.0,0.00211758]
[1763953875658,0.323,87475.0,87474.0,0.05120758]
[1763953875863,0.323,87475.0,87474.0,0.05781934]
[1763953876250,1.577561,87489.0,87474.0,0.05781934]
[1763953876455,1.900561,87489.0,87488.0,0.0354]
[1763953876654,0.323,87489.0,87488.0,0.0354]
[1763953876823,0.323,87489.0,87488.0,0.064]
[1763953877035,0.323,87488.0,87484.0,0.01491]
[1763953877451,0.323,87488.0,87487.0,0.02049]
[1763953877851,0.323,87488.0,87487.0,0.05549]
[1763953878051,0.01385712,87490.0,87487.0,0.05549]
[1763953878253,0.03437609,87495.0,87487.0,0.05549]
[1763953878254,0.03437609,87495.0,87489.0,0.02049]
[1763953878432,0.03437609,87495.0,87488.0,0.0286]
[1763953878433,1.91412292,87495.0,87494.0,0.02049]
[1763953879224,1.93526977,87495.0,87494.0,0.02049]
[1763953879427,0.01356192,87495.0,87487.0,0.035]
[1763953879624,0.323,87497.0,87487.0,0.035]
[1763953879882,0.09122371,87491.0,87487.0,0.0064]
[1763953880083,0.323,87490.0,87484.0,0.01491]
[1763953880291,0.323,87490.0,87474.0,0.00011758]
[1763953880292,0.323,87486.0,87477.0,0.01491]
[1763953880715,0.323,87486.0,87478.0,0.0286]
[1763953880882,0.01143053,87485.0,87477.0,0.01491]
[1763953881282,0.0114304,87486.0,87477.0,0.01491]
[1763953881454,0.33443026,87487.0,87477.0,0.01491]
[1763953881654,0.33443053,87485.0,87477.0,0.01691]
[1763953881852,0.33443053,87485.0,87477.0,0.01591]
[1763953882048,0.01143066,87484.0,87477.0,0.01591]
[1763953882277,0.323,87483.0,87477.0,0.01691]
[1763953882555,1.900561,87481.0,87477.0,0.01691]
[1763953882758,0.323,87481.0,87477.0,0.01691]
[1763953882977,0.33443105,87481.0,87477.0,0.01591]
[1763953883186,0.56305438,87481.0,87477.0,0.01591]
[1763953883379,0.323,87481.0,87477.0,0.01691]
[1763953883590,0.22861464,87484.0,87477.0,0.01591]
[1763953883591,0.323,87484.0,87477.0,0.01591]
[1763953883792,0.323,87480.0,87477.0,0.01591]
[1763953884172,0.323,87480.0,87477.0,0.01491]
[1763953884531,0.323,87480.0,87477.0,0.01591]
[1763953884675,0.323,87480.0,87477.0,0.01491]
[1763953884876,0.323,87487.0,87479.0,0.02049]
[1763953885077,0.323,87487.0,87481.0,0.02049]
[1763953885078,0.323,87484.0,87481.0,0.02049]
[1763953885274,0.01143105,87481.0,87477.0,0.002]
[1763953885572,0.55297891,87478.0,87477.0,0.002]
[1763953886236,0.323,87478.0,87477.0,0.001]
[1763953886600,0.56306335,87477.0,87474.0,0.00011758]
[1763953887039,0.323,87477.0,87474.0,0.00011758]
[1763953887244,0.09122371,87476.0,87474.0,0.00011758]
[1763953887439,0.09122371,87476.0,87474.0,0.00597134]
[1763953888394,0.09122371,87476.0,87474.0,0.00011758]
[1763953888538,0.55298675,87475.0,87474.0,0.00011758]
[1763953889612,0.32435,87475.0,87474.0,0.00011758]
[1763953889808,0.323,87475.0,87474.0,0.00011758]
[1763953890233,2.14323391,87475.0,87474.0,0.00111758]
[1763953890438,2.16721566,87475.0,87474.0,0.00111758]
[1763953891438,2.16721566,87475.0,87474.0,0.00011758]
[1763953891642,2.16721566,87475.0,87450.0,0.0002]
[1763953891643,0.22867335,87461.0,87450.0,0.0002]
[1763953891804,2.12923435,87461.0,87460.0,0.00076818]
[1763953892430,2.15035161,87461.0,87460.0,0.00076818]
[1763953893241,2.16168777,87461.0,87460.0,0.00076818]
[1763953893445,2.1292605,87451.0,87450.0,0.0002]
[1763953893650,2.1292605,87451.0,87450.0,0.00059159]
[1763953893830,2.1292605,87451.0,87450.0,0.00090422]
[1763953894030,2.15036774,87451.0,87450.0,0.00090422]
[1763953894258,1.900561,87451.0,87450.0,0.00090422]
[1763953895272,2.1292605,87451.0,87450.0,0.00090422]
[1763953895751,2.21608757,87451.0,87450.0,0.00090422]
[1763953896247,2.22742377,87451.0,87450.0,0.00090422]
[1763953896453,2.2484957,87451.0,87450.0,0.00090422]
[1763953897052,2.22742377,87451.0,87450.0,0.00090422]
[1763953897413,2.22842377,87451.0,87450.0,0.00090422]
[1763953898016,2.21708757,87451.0,87450.0,0.00090422]
[1763953898199,1.98838807,87451.0,87450.0,0.02088422]
[1763953898600,1.98838807,87451.0,87450.0,0.00090422]
[1763953899240,1.98738807,87451.0,87450.0,0.00090422]
[1763953899701,2.21608757,87451.0,87450.0,0.00090422]
[1763953900423,0.40982707,87451.0,87450.0,0.00090422]
[1763953901133,0.63852657,87451.0,87450.0,0.00090422]
[1763953902155,0.40982707,87451.0,87450.0,0.02088422]
[1763953902888,0.40982707,87451.0,87450.0,0.04866422]
[1763953903291,0.08682707,87451.0,87450.0,0.04866422]
[1763953903494,0.323,87451.0,87450.0,0.04866422]
[1763953904140,0.323,87451.0,87450.0,0.05066422]
[1763953904702,0.323,87459.0,87450.0,0.05066422]
[1763953904903,0.323,87457.0,87451.0,0.02915]
[1763953905160,0.323,87455.0,87451.0,0.02915]
[1763953905590,0.323,87455.0,87454.0,0.01881]
[1763953905724,0.323,87455.0,87454.0,0.0333]
[1763953905934,0.323,87455.0,87454.0,0.06885416]
[1763953906190,0.323,87458.0,87454.0,0.06885416]
[1763953906402,0.084199,87460.0,87454.0,0.02089416]
[1763953906614,2.48476,87460.0,87459.0,0.01881]
[1763953906783,0.48875948,87628.0,87459.0,0.01881]
[1763953906784,0.01143131,87479.0,87459.0,0.01881]
[1763953906987,1.577561,87469.0,87467.0,0.01449]
[1763953907373,1.900561,87469.0,87468.0,0.04796]
[1763953907571,0.323,87468.0,87467.0,0.01449]
[1763953907772,0.323,87466.0,87461.0,0.01449]
[1763953908407,0.323,87466.0,87465.0,0.01881]
[1763953908923,0.323,87468.0,87465.0,0.04796]
[1763953909124,0.323,87468.0,87465.0,0.02915]
[1763953909267,0.323,87468.0,87467.0,0.01881]
[1763953909507,0.14010763,87468.0,87467.0,0.01881]
[1763953909711,1.577561,87472.0,87467.0,0.025055]
[1763953910662,1.577561,87472.0,87467.0,0.027055]
[1763953911765,1.900561,87468.0,87467.0,0.026055]
[1763953911984,0.323,87468.0,87467.0,0.025055]
[1763953912146,0.323,87468.0,87467.0,0.026055]
[1763953912751,0.323,87468.0,87467.0,0.055205]
[1763953912916,0.323,87468.0,87467.0,0.054205]
[1763953913117,0.323,87468.0,87467.0,0.056205]
[1763953913330,0.323,87468.0,87452.0,0.0002501]
[1763953913331,0.01143445,87455.0,87452.0,0.0002501]
[1763953913531,0.323,87431.0,87430.0,0.0002]
[1763953913756,1.90095425,87431.0,87430.0,0.0002]
[1763953913956,1.90095425,87431.0,87430.0,0.00088797]
[1763953914175,1.90095425,87431.0,87430.0,0.01969797]
[1763953914421,2.12970606,87431.0,87430.0,0.01969797]
[1763953914834,1.90095425,87431.0,87430.0,0.01969797]
[1763953915036,2.12970606,87431.0,87430.0,0.01969797]
[1763953915348,2.12970606,87431.0,87430.0,0.00088797]
[1763953916929,1.90095425,87431.0,87430.0,0.00088797]
[1763953917514,1.90095425,87431.0,87430.0,0.01969797]
[1763953917739,0.00039325,87431.0,87430.0,0.04884797]
[1763953918085,0.00039325,87431.0,87430.0,0.05530745]
[1763953919100,0.00039325,87431.0,87430.0,0.05730745]
[1763953919437,0.00039325,87431.0,87430.0,0.05084797]
[1763953920633,0.00039325,87431.0,87430.0,0.02169797]
[1763953921765,0.32339325,87431.0,87430.0,0.02169797]
[1763953922307,0.32339325,87431.0,87430.0,0.04984797]
[1763953922546,0.32339325,87431.0,87430.0,0.04884797]
[1763953922737,0.00039325,87431.0,87430.0,0.00088797]
[1763953922895,0.32439325,87431.0,87430.0,0.00088797]
[1763953923892,0.32339325,87431.0,87430.0,0.00088797]
[1763953924110,0.00039325,87431.0,87430.0,0.00088797]
[1763953924312,0.00039325,87431.0,87430.0,0.00188797]
[1763953924646,0.22914506,87431.0,87430.0,0.00188797]
[1763953924912,0.55214506,87431.0,87430.0,0.00188797]
[1763953926508,0.32339325,87431.0,87430.0,0.00188797]
[1763953926712,1.92204959,87431.0,87430.0,0.00188797]
[1763953927401,1.59865634,87431.0,87430.0,0.00188797]
[1763953927566,1.59865634,87431.0,87430.0,0.00088797]
[1763953927950,1.60065634,87431.0,87430.0,0.00088797]
[1763953928151,1.59965634,87431.0,87430.0,0.00088797]
[1763953928658,1.60065634,87431.0,87430.0,0.00088797]
[1763953929296,2.15140815,87431.0,87430.0,0.00088797]
[1763953929496,1.92265634,87431.0,87430.0,0.00088797]
[1763953929651,1.92265634,87431.0,87430.0,0.01950797]
[1763953929856,2.15140815,87431.0,87430.0,0.01950797]
[1763953930057,2.15040815,87431.0,87430.0,0.00088797]
[1763953931100,2.12933898,87421.0,87420.0,0.0002]
[1763953931323,2.15043432,87421.0,87420.0,0.0002]
[1763953932613,2.24165803,87421.0,87420.0,0.0002]
[1763953932819,2.12936515,87411.0,87410.0,0.0002]
[1763953933014,2.15046049,87411.0,87410.0,0.0002]
[1763953933193,0.55181986,87405.0,87385.0,0.01372]
[1763953933395,2.16181255,87405.0,87385.0,0.01372]
[1763953934030,2.24871969,87405.0,87385.0,0.01372]
[1763953934228,2.35470481,87405.0,87382.0,0.01372]
[1763953934437,2.35470481,87405.0,87375.0,0.01372]
[1763953934438,2.39503939,87405.0,87375.0,0.01372]
[1763953934606,2.39703939,87405.0,87374.0,0.01372]
[1763953934811,2.39603939,87405.0,87374.0,0.01372]
[1763953935129,2.39503939,87405.0,87374.0,0.01372]
[1763953935327,0.55185651,87391.0,87366.0,0.02982]
[1763953935501,2.15051285,87391.0,87366.0,0.02982]
[1763953935694,2.24173656,87391.0,87375.0,0.01372]
[1763953935965,2.24173656,87391.0,87390.0,0.01882]
[1763953935966,1.92165634,87391.0,87390.0,0.01882]
[1763953936174,0.34409534,87391.0,87390.0,0.04864]
[1763953936382,0.34409534,87391.0,87390.0,0.01882]
[1763953936586,0.34409534,87391.0,87390.0,0.00059325]
[1763953936803,0.34509534,87391.0,87390.0,0.01921325]
[1763953937082,0.323,87391.0,87390.0,0.05656018]
[1763953937381,0.09122371,87399.0,87390.0,0.05128485]
[1763953937582,0.34402048,87398.0,87390.0,0.04903325]
[1763953937813,0.323,87398.0,87390.0,0.01921325]
[1763953937992,0.323,87396.0,87390.0,0.01921325]
[1763953938863,0.323,87394.0,87390.0,0.00059325]
[1763953939194,1.900561,87394.0,87393.0,0.00115769]
[1763953939401,0.323,87394.0,87393.0,0.00115769]
[1763953939897,0.323,87394.0,87393.0,0.01977769]
[1763953940102,0.323,87394.0,87393.0,0.00115769]
[1763953941241,0.34403553,87394.0,87393.0,0.00115769]
[1763953941648,0.57288419,87394.0,87393.0,0.00115769]
[1763953941852,0.34403553,87394.0,87393.0,0.00115769]
[1763953942052,0.34403553,87394.0,87393.0,0.01977769]
[1763953942253,0.34403553,87394.0,87393.0,0.02616878]
[1763953942453,2.15044519,87394.0,87393.0,0.00115769]
[1763953944445,2.16178162,87394.0,87393.0,0.00115769]
[1763953945592,2.16278162,87394.0,87393.0,0.00115769]
[1763953947923,2.12941751,87391.0,87390.0,0.00059325]
[1763953948123,2.15045304,87391.0,87390.0,0.00059325]
[1763953948779,1.92159653,87391.0,87390.0,0.04903325]
[1763953948987,1.92159653,87391.0,87390.0,0.02548858]
[1763953949197,2.15145304,87391.0,87390.0,0.00059325]
[1763953949350,1.92259653,87391.0,87390.0,0.00059325]
[1763953950184,2.15145304,87391.0,87390.0,0.00059325]
[1763953950795,2.15127994,87391.0,87390.0,0.00059325]
[1763953952556,2.16261639,87391.0,87390.0,0.00059325]
[1763953955438,2.39847994,87391.0,87390.0,0.00059325]
[1763953958354,2.16962343,87391.0,87390.0,0.00059325]
[1763953958557,1.98064817,87391.0,87390.0,0.00059325]
[1763953958762,2.07565304,87391.0,87390.0,0.00059325]
[1763953959207,1.84679653,87391.0,87390.0,0.00059325]
[1763953959526,2.07565304,87391.0,87390.0,0.00059325]
[1763953960695,2.39865304,87391.0,87390.0,0.00059325]
[1763953961095,2.16979653,87391.0,87390.0,0.00059325]
[1763953961935,2.16979653,87391.0,87390.0,0.04723325]
[1763953961936,0.02203553,87391.0,87390.0,0.04723325]
[1763953962135,0.02203553,87391.0,87390.0,0.05338061]
[1763953963986,0.02103553,87391.0,87390.0,0.05338061]
[1763953964388,0.02103553,87391.0,87390.0,0.05438061]
[1763953964770,0.02103553,87391.0,87390.0,0.05538061]
[1763953966103,0.02103553,87391.0,87390.0,0.00259325]
[1763953966541,2.15045304,87391.0,87390.0,0.00259325]
[1763953966753,1.92159653,87391.0,87390.0,0.00259325]
[1763953966913,1.92159653,87391.0,87390.0,0.00159325]
[1763953967296,1.92159653,87391.0,87390.0,0.01974325]
[1763953967482,1.92159653,87391.0,87390.0,0.00159325]
[1763953968124,1.92159653,87391.0,87390.0,0.00059325]
[1763953968580,1.92159653,87391.0,87390.0,0.04779325]
[1763953968754,1.92159653,87391.0,87390.0,0.05405561]
[1763953969251,1.92159653,87391.0,87390.0,0.02500561]
[1763953969401,1.92259653,87391.0,87390.0,0.05405561]
[1763953969749,1.92159653,87391.0,87390.0,0.01874325]
[1763953969986,1.92159653,87391.0,87390.0,0.00059325]
[1763953971000,1.92159653,87391.0,87390.0,0.00159325]
[1763953971160,1.92159653,87391.0,87390.0,0.01974325]
[1763953971378,1.92159653,87391.0,87390.0,0.01874325]
[1763953971584,1.92159653,87391.0,87390.0,0.00059325]
[1763953972071,2.15045304,87391.0,87390.0,0.00059325]
[1763953972728,2.15045304,87391.0,87390.0,0.00159325]
[1763953973138,2.15045304,87391.0,87390.0,0.00259325]
[1763953973332,2.39765304,87391.0,87390.0,0.00259325]
[1763953973651,2.39765304,87391.0,87390.0,0.00159325]
[1763953974553,2.39765304,87391.0,87390.0,0.00059325]
[1763953975548,2.40898961,87391.0,87390.0,0.00059325]
[1763953976145,1.92159653,87391.0,87390.0,0.04779325]
[1763953976348,1.59859653,87391.0,87390.0,0.05405561]
[1763953976630,0.02103553,87391.0,87390.0,0.05405561]
[1763953976830,0.323,87402.0,87390.0,0.05405561]
[1763953977104,0.323,87400.0,87391.0,0.02905]
[1763953977305,0.02117502,87399.0,87391.0,0.02905]
[1763953977566,0.323,87400.0,87391.0,0.02905]
[1763953977567,0.02117502,87398.0,87391.0,0.02905]
[1763953977774,0.02117502,87397.0,87391.0,0.02905]
[1763953977931,0.02117502,87396.0,87391.0,0.02905]
[1763953978135,0.323,87398.0,87397.0,0.03273]
[1763953978351,0.34417323,87398.0,87397.0,0.03959356]
[1763953978892,0.34417323,87398.0,87390.0,0.00059325]
[1763953978893,0.323,87396.0,87390.0,0.00059325]
[1763953979022,1.900561,87391.0,87390.0,0.00059325]
[1763953979368,1.92173423,87391.0,87390.0,0.00059325]
[1763953980264,1.92160836,87391.0,87390.0,0.00059325]
[1763953981848,1.92160836,87391.0,87390.0,0.01874325]
[1763953982262,1.92160836,87391.0,87390.0,0.00059325]
[1763953983322,1.90043513,87391.0,87390.0,0.00159325]
[1763953984044,1.90043513,87391.0,87390.0,0.00259325]
[1763953987087,1.90043513,87391.0,87390.0,0.02027325]
[1763953987287,1.90043513,87391.0,87390.0,0.00259325]
[1763953987679,2.12929164,87391.0,87390.0,0.00259325]
[1763953987882,1.90043513,87391.0,87390.0,0.00259325]
[1763953988435,0.2472,87395.0,87390.0,0.04667325]
[1763953988593,0.323,87394.0,87391.0,0.00604536]
[1763953988780,0.323,87394.0,87390.0,0.00259325]
[1763953989219,0.323,87394.0,87390.0,0.00159325]
[1763953989704,1.900561,87391.0,87390.0,0.00159325]
[1763953990133,1.900561,87391.0,87390.0,0.00059325]
[1763953991362,1.900561,87391.0,87390.0,0.01827325]
[1763953992205,1.900561,87391.0,87390.0,0.04467325]
[1763953992743,1.900561,87391.0,87390.0,0.01827325]
[1763953995279,0.323,87391.0,87390.0,0.05051861]
[1763953996736,0.2472,87395.0,87390.0,0.05051861]
[1763953996941,0.2472,87395.0,87394.0,0.01768]
[1763953997127,0.01476141,87405.0,87394.0,0.04408]
[1763953997474,0.51996629,87410.0,87404.0,0.03121]
[1763953997695,1.577561,87409.0,87404.0,0.03121]
[1763953997843,1.577561,87409.0,87405.0,0.0264]
[1763953998041,1.577561,87409.0,87408.0,0.01768]
[1763953998370,0.01632713,87410.0,87408.0,0.01768]
[1763953998516,0.01632713,87410.0,87409.0,0.049841]
[1763953998718,0.323,87418.0,87409.0,0.049841]
[1763953998920,0.323,87416.0,87410.0,0.0264]
[1763953999162,0.323,87412.0,87410.0,0.0264]
[1763953999365,0.01614708,87416.0,87410.0,0.0264]
[1763953999594,1.577561,87415.0,87410.0,0.0264]
[1763953999814,1.577561,87419.0,87415.0,0.01768]
[1763953999959,1.577561,87417.0,87414.0,0.01353]
[1763954000384,1.900561,87417.0,87416.0,0.01768]
[1763954000590,1.900561,87417.0,87416.0,0.0240171]
[1763954000838,1.900561,87417.0,87416.0,0.04408]
[1763954000995,0.323,87416.0,87414.0,0.01353]
[1763954001765,0.323,87414.0,87400.0,0.0264]
[1763954001972,0.323,87407.0,87390.0,0.00059325]
[1763954002175,0.323,87405.0,87404.0,0.03993]
[1763954002577,0.323,87405.0,87404.0,0.05761]
[1763954002806,0.323,87405.0,87404.0,0.063371]
[1763954003318,1.577561,87410.0,87404.0,0.063371]
[1763954003516,1.577561,87410.0,87409.0,0.01768]
[1763954004745,1.577561,87410.0,87404.0,0.046691]
[1763954004746,1.577561,87409.0,87404.0,0.046691]
[1763954005052,1.577561,87410.0,87404.0,0.045691]
[1763954005220,0.323,87405.0,87404.0,0.019291]
[1763954005632,0.323,87405.0,87404.0,0.063371]
[1763954006561,0.323,87407.0,87404.0,0.063371]
[1763954006768,1.900561,87406.0,87405.0,0.0327371]
[1763954007269,1.900561,87406.0,87405.0,0.0504171]
[1763954007457,1.900561,87406.0,87404.0,0.01353]
[1763954007458,0.323,87405.0,87404.0,0.001]
[1763954008471,0.323,87407.0,87404.0,0.01768]
[1763954008675,0.323,87403.0,87390.0,0.00059325]
[1763954008880,1.577561,87400.0,87390.0,0.00059325]
[1763954009245,1.577561,87400.0,87396.0,0.01353]
[1763954009901,1.577561,87400.0,87399.0,0.01768]
[1763954010120,0.323,87400.0,87399.0,0.01768]
[1763954010298,0.323,87400.0,87399.0,0.051294]
[1763954011313,0.323,87400.0,87399.0,0.052294]
[1763954011527,0.323,87400.0,87399.0,0.07517755]
[1763954012572,0.323,87400.0,87399.0,0.053294]
[1763954013544,0.323,87400.0,87399.0,0.07617755]
[1763954013743,0.323,87400.0,87399.0,0.053294]
[1763954015232,0.323,87400.0,87399.0,0.04608]
[1763954022816,0.323,87400.0,87399.0,0.01968]
[1763954023262,0.323,87400.0,87399.0,0.04777]
[1763954024192,0.0163471,87419.0,87399.0,0.04777]
[1763954024394,1.577561,87418.0,87400.0,0.114107]
[1763954024527,1.577561,87418.0,87401.0,0.0143167]
[1763954024733,1.577561,87418.0,87417.0,0.0333]
[1763954025150,1.577561,87418.0,87417.0,0.06005]
[1763954025940,1.577561,87418.0,87417.0,0.06044325]
[1763954026137,0.323,87418.0,87417.0,0.06648758]
[1763954026539,0.00931,87452.0,87417.0,0.06648758]
[1763954026540,0.5,87449.0,87417.0,0.06648758]
[1763954026755,0.5,87447.0,87432.0,0.02952]
[1763954026962,0.34095142,87446.0,87432.0,0.02952]
[1763954027166,0.34095142,87446.0,87432.0,0.05627]
[1763954027787,0.01795142,87446.0,87432.0,0.05627]
[1763954027988,0.323,87445.0,87432.0,0.05627]
[1763954028233,0.08730841,87442.0,87432.0,0.05627]
[1763954028533,0.01790216,87433.0,87432.0,0.05627]
[1763954029557,0.01790216,87433.0,87432.0,0.05727]
[1763954029678,0.01790216,87433.0,87432.0,0.062997]
[1763954030105,0.01790216,87433.0,87432.0,0.001]
[1763954030106,2.20139974,87433.0,87432.0,0.001]
[1763954030311,2.22576968,87433.0,87432.0,0.002]
[1763954030515,2.23564246,87433.0,87432.0,0.002]
[1763954030918,2.04165071,87433.0,87432.0,0.002]
[1763954031363,2.04165071,87433.0,87432.0,0.001]
[1763954031575,2.04265071,87433.0,87432.0,0.001]
[1763954031800,2.04265071,87433.0,87417.0,0.00039325]
[1763954031801,1.900561,87418.0,87417.0,0.00039325]
[1763954032221,1.90374382,87418.0,87417.0,0.01849325]
[1763954033162,1.90374382,87418.0,87417.0,0.00039325]
[1763954035282,1.99111917,87418.0,87417.0,0.00039325]
[1763954036796,0.41037535,87418.0,87417.0,0.04524325]
[1763954036923,0.323,87418.0,87417.0,0.04524325]
[1763954039459,0.2472,87422.0,87417.0,0.04524325]
[1763954039682,0.5702,87422.0,87421.0,0.03217]
[1763954040239,0.5702,87422.0,87421.0,0.06485132]
[1763954040634,0.08529114,87432.0,87421.0,0.06485132]
[1763954040865,0.01599087,87433.0,87431.0,0.03217]
[1763954041063,0.5179501,87448.0,87432.0,0.0181]
[1763954041340,0.5179501,87448.0,87438.0,0.0181]
[1763954041341,0.02938546,87448.0,87438.0,0.0181]
[1763954041562,0.03390594,87439.0,87438.0,0.0181]
[1763954041762,0.03390594,87439.0,87438.0,0.050742]
[1763954041986,0.01795284,87439.0,87438.0,0.050742]
[1763954042190,0.0338366,87439.0,87438.0,0.050742]
[1763954043071,0.0338366,87439.0,87438.0,0.04485]
[1763954044494,0.0338366,87439.0,87438.0,0.04585]
[1763954044789,0.0338366,87439.0,87438.0,0.04685]
[1763954045351,0.0338366,87439.0,87438.0,0.0201]
[1763954045551,1.9343976,87439.0,87438.0,0.002]
[1763954045739,2.16312848,87439.0,87438.0,0.002]
[1763954046296,2.16312848,87439.0,87438.0,0.001]
[1763954046844,0.22874161,87435.0,87431.0,0.01407]
[1763954047069,0.323,87434.0,87431.0,0.01407]
[1763954047455,0.323,87434.0,87433.0,0.01826]
[1763954048103,0.56317615,87436.0,87433.0,0.01826]
[1763954048339,0.323,87434.0,87433.0,0.01826]
[1763954049212,0.323,87434.0,87433.0,0.053294]
[1763954049360,0.323,87434.0,87433.0,0.04717]
[1763954049987,1.900561,87434.0,87433.0,0.01826]
[1763954050397,1.900561,87434.0,87433.0,0.04717]
[1763954050596,1.577561,87438.0,87433.0,0.04717]
[1763954050801,1.577561,87438.0,87433.0,0.053294]
[1763954051005,1.577561,87437.0,87434.0,0.02891]
[1763954051199,1.577561,87438.0,87434.0,0.02891]
[1763954051646,1.577561,87438.0,87437.0,0.01826]
[1763954052536,1.900561,87438.0,87437.0,0.01826]
[1763954052675,1.900561,87438.0,87437.0,0.04717]
[1763954052925,1.577561,87438.0,87437.0,0.0539064]
[1763954053332,0.03383375,87439.0,87437.0,0.0539064]
[1763954053532,0.03383375,87439.0,87438.0,0.04717]
[1763954057080,0.03383375,87439.0,87438.0,0.04817]
[1763954057284,0.03383375,87439.0,87438.0,0.05506764]
[1763954060217,0.01588376,87439.0,87438.0,0.05506764]
[1763954060467,0.00025014,87441.0,87438.0,0.05506764]
[1763954060675,0.00025014,87441.0,87440.0,0.01826]
[1763954061081,0.00025014,87441.0,87440.0,0.04717]